[Event "Blitz tournament"]
[Site "Biel, Switzerland"]
[Date "2021.07.31"]
[Round "10.2"]
[White "Alekseenko, Kirill"]
[Black "Lagarde, Maxime"]
[Result "1/2-1/2"]
[ECO "A80"]
[WhiteElo "2580"]
[BlackElo "2630"]
[PlyCount "196"]
[EventDate "2021.??.??"]
[EventType "blitz"]
[TimeControl "3+2"]
[WhiteClock "0:00:08"]
[BlackClock "0:00:04"]

1. d4 {[%emt 0:00:00]} f5 {[%emt 0:00:00]} 2. Nc3 {[%emt 0:00:00]} Nf6 {
[%emt 0:00:00]} 3. Bg5 {[%emt 0:00:00]} d5 {[%emt 0:00:00]} 4. Bxf6 exf6 {
[%emt 0:00:00]} 5. e3 {[%emt 0:00:00]} Be6 {[%emt 0:00:00]} 6. h4 {[%emt 0:00:
00]} Qd7 {[%emt 0:00:00]} 7. Nh3 {[%emt 0:00:00]} Nc6 {[%emt 0:00:00]} 8. a3 {
[%emt 0:00:00]} a6 {[%emt 0:00:00]} 9. Bd3 {[%emt 0:00:00]} Bd6 {[%emt 0:00:00]
} 10. Qf3 {[%emt 0:00:00]} Ne7 {[%emt 0:00:00]} 11. Nf4 {[%emt 0:00:00]} Bf7 {
[%emt 0:00:00]} 12. h5 {[%emt 0:00:00]} O-O-O {[%emt 0:00:00]} 13. O-O-O {
[%emt 0:00:00]} Qc6 {[%emt 0:00:00]} 14. Nfe2 {[%emt 0:00:00]} g6 {[%emt 0:00:
00]} 15. hxg6 {[%emt 0:00:00]} hxg6 {[%emt 0:00:00]} 16. g4 {[%emt 0:00:00]}
Be6 {[%emt 0:00:00]} 17. gxf5 {[%emt 0:00:00]} Nxf5 {[%emt 0:00:00]} 18. Rxh8 {
[%emt 0:00:00]} Rxh8 {[%emt 0:00:00]} 19. Rh1 {[%emt 0:00:00]} Rg8 {[%emt 0:00:
08]} 20. Rh7 {[%emt 0:00:00]} Kb8 {[%emt 0:00:05]} 21. Kb1 {[%emt 0:00:00]} b5
{[%emt 0:00:05]} 22. Nf4 {[%emt 0:00:00]} Bxf4 {[%emt 0:00:03]} 23. Qxf4 {
[%emt 0:00:00]} Qd6 {[%emt 0:00:02]} 24. Qf3 {[%emt 0:00:00]} c6 {[%emt 0:00:
08]} 25. e4 {[%emt 0:00:00]} dxe4 {[%emt 0:00:08]} 26. Nxe4 {[%emt 0:00:00]}
Qxd4 {[%emt 0:00:01]} 27. Qf4+ {[%emt 0:00:18]} Qe5 {[%emt 0:00:05]} 28. Qd2 {
[%emt 0:00:03]} Rg7 {[%emt 0:00:04]} 29. Rh8+ {[%emt 0:00:01]} Rg8 {[%emt 0:00:
01]} 30. Rh7 {[%emt 0:00:07]} Rg7 {[%emt 0:00:00]} 31. Rxg7 {[%emt 0:00:01]}
Nxg7 {[%emt 0:00:01]} 32. Qb4 {[%emt 0:00:01]} Bc8 {[%emt 0:00:06]} 33. Qf8 {
[%emt 0:00:13]} Ne6 {[%emt 0:00:03]} 34. Qxf6 {[%emt 0:00:07]} Qxf6 {[%emt 0:
00:01]} 35. Nxf6 {[%emt 0:00:01]} Nf4 {[%emt 0:00:01]} 36. Be4 {[%emt 0:00:04]}
Kc7 {[%emt 0:00:03]} 37. Kc1 {[%emt 0:00:06]} Kd6 {[%emt 0:00:06]} 38. Bf3 {
[%emt 0:00:04]} Bf5 {[%emt 0:00:05]} 39. Kd2 {[%emt 0:00:03]} c5 {[%emt 0:00:
03]} 40. Ne8+ {[%emt 0:00:03]} Kd7 {[%emt 0:00:03]} 41. Nf6+ {[%emt 0:00:04]}
Kd6 {[%emt 0:00:01]} 42. b4 {[%emt 0:00:03]} cxb4 {[%emt 0:00:02]} 43. axb4 {
[%emt 0:00:00]} Kc7 {[%emt 0:00:04]} 44. Ke3 {[%emt 0:00:03]} Ne6 {[%emt 0:00:
03]} 45. Nd5+ {[%emt 0:00:01]} Kb8 {[%emt 0:00:01]} 46. c3 {[%emt 0:00:01]} Nc7
{[%emt 0:00:02]} 47. Kd4 {[%emt 0:00:10]} Nxd5 {[%emt 0:00:04]} 48. Bxd5 {
[%emt 0:00:01]} Kc7 {[%emt 0:00:00]} 49. Ke5 {[%emt 0:00:01]} Kb6 {[%emt 0:00:
03]} 50. f4 {[%emt 0:00:07]} a5 {[%emt 0:00:01]} 51. bxa5+ {[%emt 0:00:01]}
Kxa5 {[%emt 0:00:01]} 52. Kf6 {[%emt 0:00:03]} Kb6 {[%emt 0:00:04]} 53. Bf7 {
[%emt 0:00:01]} Kc5 {[%emt 0:00:03]} 54. Bxg6 {[%emt 0:00:01]} Bh3 {[%emt 0:00:
02]} 55. Bd3 {[%emt 0:00:03]} b4 {[%emt 0:00:01]} 56. cxb4+ {[%emt 0:00:02]}
Kxb4 {[%emt 0:00:00]} 57. Bf5 {[%emt 0:00:01]} Bf1 {[%emt 0:00:01]} 58. Ke5 {
[%emt 0:00:03]} Kc5 {[%emt 0:00:01]} 59. Bg4 {[%emt 0:00:03]} Bd3 {[%emt 0:00:
01]} 60. Bf3 {[%emt 0:00:00]} Bb1 {[%emt 0:00:06]} 61. Be4 {[%emt 0:00:02]} Ba2
{[%emt 0:00:03]} 62. f5 {[%emt 0:00:01]} Bb3 {[%emt 0:00:03]} 63. f6 {[%emt 0:
00:02]} Ba2 {[%emt 0:00:01]} 64. Bf5 {[%emt 0:00:03]} Bf7 {[%emt 0:00:03]} 65.
Be6 {[%emt 0:00:01]} Be8 {[%emt 0:00:02]} 66. Bd5 {[%emt 0:00:01]} Bg6 {
[%emt 0:00:02]} 67. Ke6 {[%emt 0:00:06]} Kd4 {[%emt 0:00:02]} 68. Bb3 {[%emt 0:
00:03]} Bh5 {[%emt 0:00:02]} 69. Bc2 {[%emt 0:00:03]} Be8 {[%emt 0:00:02]} 70.
Ke7 {[%emt 0:00:00]} Bh5 {[%emt 0:00:01]} 71. Bd1 {[%emt 0:00:01]} Bg6 {
[%emt 0:00:00]} 72. Bc2 {[%emt 0:00:01]} Bh5 {[%emt 0:00:01]} 73. Bb3 {[%emt 0:
00:02]} Ke5 {[%emt 0:00:02]} 74. Bc2 {[%emt 0:00:03]} Kd5 {[%emt 0:00:05]} 75.
Bd1 {[%emt 0:00:01]} Bg6 {[%emt 0:00:01]} 76. Bc2 {[%emt 0:00:05]} Bh5 {
[%emt 0:00:02]} 77. Bd3 {[%emt 0:00:00]} Ke5 {[%emt 0:00:01]} 78. Bc4 {[%emt 0:
00:01]} Bg6 {[%emt 0:00:01]} 79. Bf7 {[%emt 0:00:02]} Bd3 {[%emt 0:00:03]} 80.
Bb3 {[%emt 0:00:03]} Bg6 {[%emt 0:00:02]} 81. Bd1 {[%emt 0:00:01]} Kd5 {
[%emt 0:00:02]} 82. Kf8 {[%emt 0:00:01]} Ke5 {[%emt 0:00:03]} 83. Kg7 {[%emt 0:
00:01]} Be8 {[%emt 0:00:01]} 84. Be2 {[%emt 0:00:02]} Kf5 {[%emt 0:00:03]} 85.
Bb5 {[%emt 0:00:02]} Bh5 {[%emt 0:00:02]} 86. Bc6 {[%emt 0:00:03]} Kg5 {
[%emt 0:00:02]} 87. Be4 {[%emt 0:00:02]} Be8 {[%emt 0:00:02]} 88. Bd5 {[%emt 0:
00:00]} Bh5 {[%emt 0:00:03]} 89. Bf7 {[%emt 0:00:01]} Be2 {[%emt 0:00:02]} 90.
Be8 {[%emt 0:00:03]} Bc4 {[%emt 0:00:01]} 91. Bb5 {[%emt 0:00:03]} Bd5 {
[%emt 0:00:01]} 92. Bd3 {[%emt 0:00:01]} Bb3 {[%emt 0:00:03]} 93. Bg6 {[%emt 0:
00:02]} Bd5 {[%emt 0:00:02]} 94. Bf7 {[%emt 0:00:01]} Bf3 {[%emt 0:00:01]} 95.
Be6 {[%emt 0:00:03]} Bh5 {[%emt 0:00:01]} 96. Bd7 {[%emt 0:00:03]} Kf4 {
[%emt 0:00:04]} 97. Kf8 {[%emt 0:00:03]} Bg6 {[%emt 0:00:03]} 98. Be8 {[%emt 0:
00:02]} Kf5 {[%emt 0:00:02]} 1/2-1/2

[Event "Blitz tournament"]
[Site "Biel, Switzerland"]
[Date "2021.07.31"]
[Round "10.4"]
[White "Gelfand, Boris"]
[Black "Nihal, Sarin"]
[Result "0-1"]
[ECO "E06"]
[WhiteElo "2691"]
[BlackElo "2658"]
[PlyCount "52"]
[EventDate "2021.??.??"]
[EventType "blitz"]
[TimeControl "3+2"]
[WhiteClock "0:01:01"]
[BlackClock "0:00:29"]

1. d4 {[%emt 0:00:00]} Nf6 {[%emt 0:00:00]} 2. Nf3 {[%emt 0:00:00]} d5 {
[%emt 0:00:00]} 3. c4 {[%emt 0:00:00]} e6 {[%emt 0:00:00]} 4. g3 {[%emt 0:00:
00]} Be7 {[%emt 0:00:00]} 5. Bg2 {[%emt 0:00:00]} O-O {[%emt 0:00:00]} 6. Nc3 {
[%emt 0:00:00]} dxc4 {[%emt 0:00:00]} 7. Ne5 {[%emt 0:00:00]} Nc6 {[%emt 0:00:
00]} 8. Bxc6 bxc6 {[%emt 0:00:00]} 9. Nxc6 {[%emt 0:00:00]} Qe8 {[%emt 0:00:00]
} 10. Nxe7+ {[%emt 0:00:00]} Qxe7 {[%emt 0:00:00]} 11. Qa4 {[%emt 0:00:00]} c5
{[%emt 0:00:00]} 12. dxc5 {[%emt 0:00:00]} Qxc5 {[%emt 0:00:00]} 13. Be3 {
[%emt 0:00:00]} Qc7 {[%emt 0:00:00]} 14. f3 {[%emt 0:00:00]} Bb7 {[%emt 0:00:
00]} 15. Kf2 {[%emt 0:00:00]} e5 {[%emt 0:00:00]} 16. Qb5 {[%emt 0:00:00]} e4 {
[%emt 0:00:00]} 17. Qc5 {[%emt 0:00:00]} Qd7 {[%emt 0:00:00]} 18. Rad1 {
[%emt 0:00:00]} Qh3 {[%emt 0:00:00]} 19. Bd4 {[%emt 0:00:00]} exf3 {[%emt 0:00:
00]} 20. exf3 {[%emt 0:00:00]} Ng4+ {[%emt 0:00:00]} 21. fxg4 {[%emt 0:00:00]}
Qg2+ {[%emt 0:00:00]} 22. Ke3 {[%emt 0:00:00]} Rfe8+ {[%emt 0:00:00]} 23. Be5 {
[%emt 0:00:00]} f6 {[%emt 0:00:00]} 24. Qxc4+ {[%emt 0:00:00]} Kh8 {[%emt 0:00:
00]} 25. Kd3 {[%emt 0:00:00]} Rxe5 {[%emt 0:00:27]} 26. Qc7 {[%emt 0:00:00]}
Ba6+ {[%emt 0:00:04]} 0-1

[Event "Blitz tournament"]
[Site "Biel, Switzerland"]
[Date "2021.07.31"]
[Round "11.1"]
[White "Gelfand, Boris"]
[Black "Kamsky, Gata"]
[Result "0-1"]
[ECO "A81"]
[WhiteElo "2691"]
[BlackElo "2644"]
[PlyCount "69"]
[EventDate "2021.??.??"]
[EventType "blitz"]
[TimeControl "3+2"]
[WhiteClock "0:00:03"]
[BlackClock "0:00:25"]

1. d4 {[%emt 0:00:00]} f5 {[%emt 0:00:00]} 2. g3 {[%emt 0:00:00]} Nf6 {[%emt 0:
00:00]} 3. Bg2 {[%emt 0:00:00]} g6 {[%emt 0:00:00]} 4. Nf3 {[%emt 0:00:00]} Bg7
{[%emt 0:00:00]} 5. O-O {[%emt 0:00:00]} O-O {[%emt 0:00:00]} 6. Nbd2 {[%emt 0:
00:00]} d6 {[%emt 0:00:00]} 7. Re1 {[%emt 0:00:00]} Nc6 {[%emt 0:00:00]} 8. c3
{[%emt 0:00:00]} e5 {[%emt 0:00:00]} 9. e4 {[%emt 0:00:00]} Nxe4 {[%emt 0:00:
00]} 10. Nxe4 {[%emt 0:00:00]} fxe4 {[%emt 0:00:00]} 11. Rxe4 {[%emt 0:00:00]}
d5 {[%emt 0:00:00]} 12. Rh4 {[%emt 0:00:00]} e4 {[%emt 0:00:00]} 13. Bg5 {
[%emt 0:00:00]} Bf6 {[%emt 0:00:00]} 14. Bxf6 {[%emt 0:00:00]} Qxf6 {[%emt 0:
00:00]} 15. Rf4 {[%emt 0:00:00]} Bf5 {[%emt 0:00:00]} 16. Nh4 {[%emt 0:00:00]}
Ne7 {[%emt 0:00:00]} 17. Qb3 {[%emt 0:00:00]} Kh8 {[%emt 0:00:00]} 18. Bh3 {
[%emt 0:00:00]} Qb6 {[%emt 0:00:00]} 19. Bxf5 {[%emt 0:00:00]} g5 {[%emt 0:00:
00]} 20. Bxe4 {[%emt 0:00:16]} gxf4 {[%emt 0:00:00]} 21. Bxd5 {[%emt 0:00:04]}
fxg3 {[%emt 0:00:01]} 22. fxg3 {[%emt 0:00:05]} Nxd5 {[%emt 0:00:05]} 23. Qxd5
{[%emt 0:00:01]} Rae8 {[%emt 0:00:00]} 24. Qg2 {[%emt 0:00:20]} Qe6 {[%emt 0:
00:07]} 25. Qd2 {[%emt 0:00:00]} Qe2 {[%emt 0:00:03]} 26. Qxe2 {[%emt 0:00:05]}
Rxe2 {[%emt 0:00:02]} 27. b3 {[%emt 0:00:01]} Rff2 {[%emt 0:00:04]} 28. a4 {
[%emt 0:00:02]} Kg7 {[%emt 0:00:10]} 29. a5 {[%emt 0:00:01]} Ra2 {[%emt 0:00:
07]} 30. Re1 {[%emt 0:00:03]} Rfe2 {[%emt 0:00:02]} 31. Rf1 {[%emt 0:00:02]}
Rxh2 {[%emt 0:00:02]} 32. b4 {[%emt 0:00:02]} Rhc2 {[%emt 0:00:03]} 33. Nf5+ {
[%emt 0:00:03]} Kg6 {[%emt 0:00:02]} 34. Nh4+ {[%emt 0:00:08]} Kh5 {[%emt 0:00:
03]} 35. Nf3 {[%emt 0:00:03]} 0-1

[Event "Blitz tournament"]
[Site "Biel, Switzerland"]
[Date "2021.07.31"]
[Round "11.3"]
[White "Keymer, Vincent"]
[Black "Alekseenko, Kirill"]
[Result "1-0"]
[ECO "A17"]
[WhiteElo "2474"]
[BlackElo "2580"]
[PlyCount "67"]
[EventDate "2021.??.??"]
[EventType "blitz"]
[TimeControl "3+2"]
[WhiteClock "0:00:09"]
[BlackClock "0:00:05"]

1. Nf3 {[%emt 0:00:00]} d5 {[%emt 0:00:00]} 2. e3 {[%emt 0:00:00]} Nf6 {
[%emt 0:00:00]} 3. c4 {[%emt 0:00:00]} e6 {[%emt 0:00:00]} 4. Nc3 {[%emt 0:00:
00]} Bd6 {[%emt 0:00:00]} 5. b3 {[%emt 0:00:00]} b6 {[%emt 0:00:00]} 6. g3 {
[%emt 0:00:00]} O-O {[%emt 0:00:00]} 7. Bb2 {[%emt 0:00:00]} Nbd7 {[%emt 0:00:
00]} 8. Bg2 {[%emt 0:00:00]} Ba6 {[%emt 0:00:00]} 9. d3 {[%emt 0:00:00]} c5 {
[%emt 0:00:00]} 10. O-O {[%emt 0:00:00]} Re8 {[%emt 0:00:00]} 11. a4 {[%emt 0:
00:00]} Rb8 {[%emt 0:00:00]} 12. Nb5 {[%emt 0:00:00]} Bxb5 {[%emt 0:00:00]} 13.
axb5 {[%emt 0:00:00]} Qc7 {[%emt 0:00:00]} 14. Qc2 {[%emt 0:00:00]} Re7 {
[%emt 0:00:00]} 15. Ra4 {[%emt 0:00:00]} Ne5 {[%emt 0:00:00]} 16. Rfa1 {
[%emt 0:00:00]} Nxf3+ {[%emt 0:00:00]} 17. Bxf3 {[%emt 0:00:00]} Rd8 {[%emt 0:
00:00]} 18. Bxf6 {[%emt 0:00:00]} gxf6 {[%emt 0:00:00]} 19. cxd5 {[%emt 0:00:
00]} Be5 {[%emt 0:00:00]} 20. Rc1 {[%emt 0:00:00]} Qd7 {[%emt 0:00:03]} 21.
Rg4+ {[%emt 0:00:07]} Kh8 22. d4 {[%emt 0:00:00]} Bd6 {[%emt 0:00:15]} 23. Rh4
{[%emt 0:00:12]} f5 {[%emt 0:00:01]} 24. e4 {[%emt 0:00:17]} exd5 {[%emt 0:00:
01]} 25. e5 {[%emt 0:00:04]} Bb8 {[%emt 0:00:06]} 26. Bg4 {[%emt 0:00:01]} cxd4
{[%emt 0:00:18]} 27. Bxf5 {[%emt 0:00:03]} Qc7 {[%emt 0:00:00]} 28. Rxh7+ {
[%emt 0:00:09]} Kg8 29. Qd1 {[%emt 0:00:02]} Qxe5 {[%emt 0:00:02]} 30. Qg4+ {
[%emt 0:00:04]} Kf8 {[%emt 0:00:00]} 31. Qh5 {[%emt 0:00:01]} Rc7 {[%emt 0:00:
11]} 32. Rh8+ {[%emt 0:00:06]} Ke7 {[%emt 0:00:03]} 33. Qh4+ {[%emt 0:00:00]}
Qf6 {[%emt 0:00:09]} 34. Re1+ {[%emt 0:00:01]} 1-0

[Event "Blitz tournament"]
[Site "Biel, Switzerland"]
[Date "2021.07.31"]
[Round "11.4"]
[White "Lagarde, Maxime"]
[Black "Studer, Noël"]
[Result "1-0"]
[ECO "C48"]
[WhiteElo "2630"]
[BlackElo "2451"]
[PlyCount "65"]
[EventDate "2021.??.??"]
[EventType "blitz"]
[TimeControl "3+2"]
[WhiteClock "0:00:19"]
[BlackClock "0:00:15"]

1. e4 {[%emt 0:00:00]} e5 {[%emt 0:00:00]} 2. Nf3 {[%emt 0:00:00]} Nf6 {
[%emt 0:00:00]} 3. Nc3 {[%emt 0:00:00]} Nc6 {[%emt 0:00:00]} 4. Bb5 {[%emt 0:
00:00]} Nd4 {[%emt 0:00:00]} 5. O-O {[%emt 0:00:00]} Nxb5 {[%emt 0:00:00]} 6.
Nxb5 {[%emt 0:00:00]} c6 {[%emt 0:00:00]} 7. Nc3 {[%emt 0:00:00]} d6 {[%emt 0:
00:00]} 8. d4 {[%emt 0:00:00]} Qc7 {[%emt 0:00:00]} 9. a4 {[%emt 0:00:00]} Be7
{[%emt 0:00:00]} 10. h3 {[%emt 0:00:00]} O-O {[%emt 0:00:00]} 11. b3 {[%emt 0:
00:00]} h6 {[%emt 0:00:00]} 12. Ba3 {[%emt 0:00:00]} Rd8 {[%emt 0:00:00]} 13.
Re1 {[%emt 0:00:00]} Rb8 {[%emt 0:00:00]} 14. Qd2 {[%emt 0:00:00]} b5 {[%emt 0:
00:00]} 15. axb5 {[%emt 0:00:00]} cxb5 {[%emt 0:00:00]} 16. Bb4 {[%emt 0:00:00]
} Rd7 {[%emt 0:00:00]} 17. Nh4 {[%emt 0:00:00]} Qb6 {[%emt 0:00:00]} 18. Nf5 {
[%emt 0:00:00]} Bf8 {[%emt 0:00:00]} 19. Re3 {[%emt 0:00:00]} Rd8 {[%emt 0:00:
00]} 20. Ba5 {[%emt 0:00:00]} b4 {[%emt 0:00:20]} 21. Bxb6 {[%emt 0:00:00]}
bxc3 {[%emt 0:00:01]} 22. Qxc3 {[%emt 0:00:00]} axb6 {[%emt 0:00:00]} 23. dxe5
{[%emt 0:00:00]} dxe5 {[%emt 0:00:01]} 24. Qxe5 {[%emt 0:00:00]} Bxf5 {[%emt 0:
00:06]} 25. Qxf5 {[%emt 0:00:00]} Rdc8 {[%emt 0:00:12]} 26. e5 {[%emt 0:00:00]}
Nd5 {[%emt 0:00:02]} 27. Rf3 {[%emt 0:00:06]} Rc7 {[%emt 0:00:03]} 28. e6 {
[%emt 0:00:01]} Nf6 {[%emt 0:00:02]} 29. Re1 {[%emt 0:00:20]} Bb4 {[%emt 0:00:
02]} 30. Qf4 {[%emt 0:00:11]} Bxe1 {[%emt 0:00:06]} 31. Qxc7 {[%emt 0:00:02]}
Rf8 {[%emt 0:00:00]} 32. e7 {[%emt 0:00:05]} Re8 {[%emt 0:00:02]} 33. Rxf6 {
[%emt 0:00:10]} 1-0

[Event "Blitz tournament"]
[Site "Biel, Switzerland"]
[Date "2021.07.31"]
[Round "12.1"]
[White "Kamsky, Gata"]
[Black "Lagarde, Maxime"]
[Result "1-0"]
[ECO "C63"]
[WhiteElo "2644"]
[BlackElo "2630"]
[PlyCount "131"]
[EventDate "2021.??.??"]
[EventType "blitz"]
[TimeControl "3+2"]
[WhiteClock "0:00:43"]
[BlackClock "0:00:11"]

1. e4 {[%emt 0:00:00]} e5 {[%emt 0:00:00]} 2. Nf3 {[%emt 0:00:00]} Nc6 {
[%emt 0:00:00]} 3. Bb5 {[%emt 0:00:00]} f5 {[%emt 0:00:00]} 4. Nc3 {[%emt 0:00:
00]} fxe4 {[%emt 0:00:00]} 5. Nxe4 {[%emt 0:00:00]} Nf6 {[%emt 0:00:00]} 6. Qe2
{[%emt 0:00:00]} d5 {[%emt 0:00:00]} 7. Nxf6+ {[%emt 0:00:00]} gxf6 {[%emt 0:
00:00]} 8. d4 {[%emt 0:00:00]} e4 {[%emt 0:00:00]} 9. Nh4 {[%emt 0:00:00]} Qe7
{[%emt 0:00:00]} 10. O-O {[%emt 0:00:00]} f5 {[%emt 0:00:00]} 11. g3 {[%emt 0:
00:00]} Bg7 {[%emt 0:00:00]} 12. Qh5+ {[%emt 0:00:00]} Qf7 {[%emt 0:00:00]} 13.
Qxf7+ {[%emt 0:00:00]} Kxf7 {[%emt 0:00:00]} 14. c3 {[%emt 0:00:00]} Bf6 {
[%emt 0:00:00]} 15. Ng2 {[%emt 0:00:00]} Nd8 {[%emt 0:00:00]} 16. Be2 {[%emt 0:
00:00]} Ne6 {[%emt 0:00:00]} 17. Ne3 {[%emt 0:00:00]} Bxd4 {[%emt 0:00:00]} 18.
Bh5+ {[%emt 0:00:00]} Kf6 {[%emt 0:00:00]} 19. cxd4 {[%emt 0:00:00]} c6 {
[%emt 0:00:00]} 20. f3 {[%emt 0:00:00]} Ng7 {[%emt 0:00:10]} 21. fxe4 {[%emt 0:
00:00]} Nxh5 {[%emt 0:00:03]} 22. g4 {[%emt 0:00:00]} Ng7 {[%emt 0:00:12]} 23.
exf5 {[%emt 0:00:00]} h5 {[%emt 0:00:04]} 24. g5+ {[%emt 0:00:00]} Kxg5 {
[%emt 0:00:05]} 25. Nxd5+ {[%emt 0:00:00]} Kh4 {[%emt 0:00:07]} 26. Ne7 {
[%emt 0:00:00]} Nxf5 {[%emt 0:00:13]} 27. Nxf5+ {[%emt 0:00:00]} Bxf5 {[%emt 0:
00:00]} 28. Rxf5 {[%emt 0:00:00]} Rhg8+ {[%emt 0:00:01]} 29. Kh1 {[%emt 0:00:
07]} Raf8 {[%emt 0:00:04]} 30. Rxf8 {[%emt 0:00:03]} Rxf8 {[%emt 0:00:01]} 31.
Be3 {[%emt 0:00:02]} Kh3 {[%emt 0:00:04]} 32. Rg1 {[%emt 0:00:06]} h4 {[%emt 0:
00:01]} 33. Re1 {[%emt 0:00:03]} a5 {[%emt 0:00:04]} 34. a4 {[%emt 0:00:02]}
Rf5 {[%emt 0:00:03]} 35. Bg1 {[%emt 0:00:07]} b5 {[%emt 0:00:02]} 36. axb5 {
[%emt 0:00:07]} Rxb5 {[%emt 0:00:01]} 37. Re3+ {[%emt 0:00:02]} Kg4 {[%emt 0:
00:01]} 38. h3+ {[%emt 0:00:02]} Kf4 {[%emt 0:00:01]} 39. b3 {[%emt 0:00:01]}
Rb4 {[%emt 0:00:05]} 40. Rc3 {[%emt 0:00:01]} Ke4 {[%emt 0:00:03]} 41. Kg2 {
[%emt 0:00:04]} Rb8 {[%emt 0:00:01]} 42. Bf2 {[%emt 0:00:01]} Rg8+ {[%emt 0:00:
02]} 43. Kf1 {[%emt 0:00:01]} Rb8 {[%emt 0:00:01]} 44. Ke2 {[%emt 0:00:03]} Rb7
{[%emt 0:00:02]} 45. Kd2 {[%emt 0:00:03]} Rb8 {[%emt 0:00:01]} 46. Kc2 {
[%emt 0:00:01]} Rf8 {[%emt 0:00:03]} 47. Bxh4 {[%emt 0:00:01]} Kxd4 {[%emt 0:
00:01]} 48. Rxc6 {[%emt 0:00:02]} Rf3 {[%emt 0:00:01]} 49. Rc4+ {[%emt 0:00:02]
} Kd5 {[%emt 0:00:01]} 50. Rc3 {[%emt 0:00:01]} Rf4 {[%emt 0:00:01]} 51. Bg3 {
[%emt 0:00:01]} Rf5 {[%emt 0:00:01]} 52. h4 {[%emt 0:00:03]} Rf1 {[%emt 0:00:
01]} 53. Re3 {[%emt 0:00:05]} Kc6 {[%emt 0:00:03]} 54. h5 {[%emt 0:00:04]} Rh1
{[%emt 0:00:01]} 55. Re5 {[%emt 0:00:02]} Kb6 {[%emt 0:00:02]} 56. Rg5 {
[%emt 0:00:01]} Rh3 {[%emt 0:00:04]} 57. Kc3 {[%emt 0:00:01]} Ka6 {[%emt 0:00:
02]} 58. Kc4 {[%emt 0:00:01]} Rh1 {[%emt 0:00:04]} 59. Rg6+ {[%emt 0:00:01]}
Kb7 {[%emt 0:00:01]} 60. h6 {[%emt 0:00:01]} Rh5 {[%emt 0:00:01]} 61. Be1 {
[%emt 0:00:08]} Kc7 {[%emt 0:00:03]} 62. Bd2 {[%emt 0:00:01]} Kb7 {[%emt 0:00:
01]} 63. Rg7+ {[%emt 0:00:02]} Kc6 {[%emt 0:00:01]} 64. h7 {[%emt 0:00:01]}
Rh4+ {[%emt 0:00:01]} 65. Kd3 {[%emt 0:00:01]} Kb5 {[%emt 0:00:02]} 66. Bc3 {
[%emt 0:00:05]} 1-0

[Event "Blitz tournament"]
[Site "Biel, Switzerland"]
[Date "2021.07.31"]
[Round "12.2"]
[White "Studer, Noël"]
[Black "Keymer, Vincent"]
[Result "1-0"]
[ECO "E11"]
[WhiteElo "2451"]
[BlackElo "2474"]
[PlyCount "117"]
[EventDate "2021.??.??"]
[EventType "blitz"]
[TimeControl "3+2"]
[WhiteClock "0:00:05"]
[BlackClock "0:00:04"]

1. d4 {[%emt 0:00:00]} Nf6 {[%emt 0:00:00]} 2. c4 {[%emt 0:00:00]} e6 {[%emt 0:
00:00]} 3. Nf3 {[%emt 0:00:00]} d5 {[%emt 0:00:00]} 4. g3 {[%emt 0:00:00]} Bb4+
{[%emt 0:00:00]} 5. Bd2 {[%emt 0:00:00]} Be7 {[%emt 0:00:00]} 6. Bg2 {[%emt 0:
00:00]} O-O {[%emt 0:00:00]} 7. O-O {[%emt 0:00:00]} c6 {[%emt 0:00:00]} 8. Qb3
{[%emt 0:00:00]} a5 {[%emt 0:00:00]} 9. Rc1 {[%emt 0:00:00]} Nbd7 {[%emt 0:00:
00]} 10. a3 {[%emt 0:00:00]} Nb6 {[%emt 0:00:00]} 11. c5 {[%emt 0:00:00]} Nc4 {
[%emt 0:00:00]} 12. Rxc4 {[%emt 0:00:00]} dxc4 {[%emt 0:00:00]} 13. Qxc4 {
[%emt 0:00:00]} b6 {[%emt 0:00:00]} 14. Ne5 {[%emt 0:00:00]} Ba6 {[%emt 0:00:
00]} 15. Qc3 {[%emt 0:00:00]} Nd5 {[%emt 0:00:00]} 16. Qb3 {[%emt 0:00:00]}
bxc5 {[%emt 0:00:00]} 17. Nxc6 {[%emt 0:00:00]} Qc7 {[%emt 0:00:00]} 18. Nxe7+
{[%emt 0:00:00]} Qxe7 {[%emt 0:00:00]} 19. Nc3 {[%emt 0:00:00]} Nxc3 {[%emt 0:
00:00]} 20. Qxc3 {[%emt 0:00:00]} cxd4 {[%emt 0:00:00]} 21. Qxa5 {[%emt 0:00:
00]} Bb7 {[%emt 0:00:00]} 22. Qb4 {[%emt 0:00:00]} Qxb4 {[%emt 0:00:03]} 23.
Bxb4 {[%emt 0:00:00]} Rfb8 {[%emt 0:00:06]} 24. Bd6 {[%emt 0:00:19]} Rd8 {
[%emt 0:00:01]} 25. Bxb7 {[%emt 0:00:12]} Ra7 {[%emt 0:00:00]} 26. Be7 {
[%emt 0:00:03]} Rd7 {[%emt 0:00:03]} 27. Rc1 {[%emt 0:00:01]} f5 {[%emt 0:00:
02]} 28. Bc5 {[%emt 0:00:17]} Raxb7 {[%emt 0:00:05]} 29. b4 {[%emt 0:00:01]} d3
{[%emt 0:00:23]} 30. exd3 {[%emt 0:00:01]} Rxd3 {[%emt 0:00:01]} 31. a4 {
[%emt 0:00:00]} Ra3 {[%emt 0:00:01]} 32. a5 {[%emt 0:00:05]} Rd7 {[%emt 0:00:
09]} 33. Bb6 {[%emt 0:00:09]} Rd5 {[%emt 0:00:08]} 34. Rc7 {[%emt 0:00:03]} h5
{[%emt 0:00:05]} 35. h4 {[%emt 0:00:01]} Ra4 {[%emt 0:00:06]} 36. Bc5 {[%emt 0:
00:01]} e5 {[%emt 0:00:02]} 37. Rc6 {[%emt 0:00:02]} Rd1+ {[%emt 0:00:03]} 38.
Kg2 {[%emt 0:00:02]} Rda1 {[%emt 0:00:01]} 39. Re6 {[%emt 0:00:03]} e4 {
[%emt 0:00:01]} 40. Re5 {[%emt 0:00:01]} g6 {[%emt 0:00:00]} 41. Re6 {[%emt 0:
00:01]} Kf7 {[%emt 0:00:01]} 42. Re7+ {[%emt 0:00:00]} Kg8 {[%emt 0:00:01]} 43.
Ra7 {[%emt 0:00:05]} R1a2 {[%emt 0:00:01]} 44. Kf1 {[%emt 0:00:03]} R4a3 {
[%emt 0:00:02]} 45. Bd4 {[%emt 0:00:04]} Rb3 {[%emt 0:00:03]} 46. Bc5 {[%emt 0:
00:01]} e3 {[%emt 0:00:04]} 47. Bxe3 {[%emt 0:00:02]} Rxb4 {[%emt 0:00:02]} 48.
a6 {[%emt 0:00:01]} Rba4 {[%emt 0:00:03]} 49. Ra8+ {[%emt 0:00:01]} Kf7 {
[%emt 0:00:02]} 50. a7 {[%emt 0:00:00]} Kg7 {[%emt 0:00:02]} 51. Kg2 {[%emt 0:
00:02]} Kh7 {[%emt 0:00:03]} 52. Kf3 {[%emt 0:00:04]} R2a3 {[%emt 0:00:01]} 53.
Ke2 {[%emt 0:00:02]} Ra6 {[%emt 0:00:03]} 54. Bd4 {[%emt 0:00:04]} g5 {[%emt 0:
00:02]} 55. hxg5 {[%emt 0:00:02]} Ra2+ {[%emt 0:00:04]} 56. Kd3 {[%emt 0:00:01]
} R2a4 {[%emt 0:00:01]} 57. Rh8+ {[%emt 0:00:04]} Kg6 {[%emt 0:00:01]} 58. f4 {
[%emt 0:00:02]} Rd6 {[%emt 0:00:04]} 59. Rh6+ {[%emt 0:00:01]} 1-0